[Event "Late-Titled-Tuesday-Blitz-June-18-2024"]
[Site "Chess.com"]
[Date "2024.06.18"]
[Round "5"]
[White "yaguigor"]
[Black "Road2GM3000"]
[Result "1/2-1/2"]
[WhiteElo "2637"]
[BlackElo "2460"]
[TimeControl "180+1"]
[EndTime "14:59:21 PDT"]
[Termination "Game drawn - insufficient material"]

1. Nf3 {[%clk 0:02:49.2]} 1... d5 {[%clk 0:02:57.7]} 2. d4 {[%clk 0:02:48.3]}
2... Nf6 {[%clk 0:02:55.3]} 3. c4 {[%clk 0:02:48.2]} 3... c6 {[%clk 0:02:53.9]}
4. Nc3 {[%clk 0:02:47.3]} 4... a6 {[%clk 0:02:54]} 5. c5 {[%clk 0:02:43.1]} 5...
Nbd7 {[%clk 0:02:53.2]} 6. Bf4 {[%clk 0:02:42.2]} 6... Nh5 {[%clk 0:02:50.9]} 7.
e3 {[%clk 0:02:41.7]} 7... Nxf4 {[%clk 0:02:50.2]} 8. exf4 {[%clk 0:02:41.7]}
8... Nf6 {[%clk 0:02:49]} 9. Ne5 {[%clk 0:02:39.2]} 9... g6 {[%clk 0:02:47.2]}
10. Bd3 {[%clk 0:02:35.4]} 10... Bg7 {[%clk 0:02:47.6]} 11. O-O {[%clk
0:02:32.7]} 11... O-O {[%clk 0:02:48.2]} 12. Qc2 {[%clk 0:02:31.7]} 12... Ng4
{[%clk 0:02:37.5]} 13. h3 {[%clk 0:02:25.6]} 13... Nf6 {[%clk 0:02:32.4]} 14. b4
{[%clk 0:02:23.1]} 14... Nd7 {[%clk 0:02:32.7]} 15. a4 {[%clk 0:02:19]} 15... f6
{[%clk 0:02:32.8]} 16. Nf3 {[%clk 0:02:17.4]} 16... e5 {[%clk 0:02:31.7]} 17.
fxe5 {[%clk 0:02:13.7]} 17... fxe5 {[%clk 0:02:32.6]} 18. dxe5 {[%clk
0:02:12.9]} 18... Nxe5 {[%clk 0:02:33.5]} 19. Nxe5 {[%clk 0:02:10.4]} 19... Bxe5
{[%clk 0:02:34.4]} 20. Rad1 {[%clk 0:02:04.3]} 20... Qf6 {[%clk 0:02:32.4]} 21.
Ne2 {[%clk 0:02:01.7]} 21... Bd7 {[%clk 0:02:30.4]} 22. f4 {[%clk 0:01:59]}
22... Bc7 {[%clk 0:02:24]} 23. Rb1 {[%clk 0:01:50]} 23... Rae8 {[%clk
0:02:23.1]} 24. b5 {[%clk 0:01:48.6]} 24... axb5 {[%clk 0:02:22.1]} 25. axb5
{[%clk 0:01:49.4]} 25... Re7 {[%clk 0:02:19.7]} 26. b6 {[%clk 0:01:47.4]} 26...
Bb8 {[%clk 0:02:16.6]} 27. Ra1 {[%clk 0:01:44.6]} 27... Bxf4 {[%clk 0:01:37]}
28. Nxf4 {[%clk 0:01:36.1]} 28... Qd4+ {[%clk 0:01:37]} 29. Kh1 {[%clk
0:01:20.9]} 29... Rxf4 {[%clk 0:01:30.9]} 30. Ra8+ {[%clk 0:01:19.6]} 30... Kg7
{[%clk 0:01:28]} 31. Rxf4 {[%clk 0:01:03]} 31... Qxf4 {[%clk 0:01:26.3]} 32.
Qb2+ {[%clk 0:00:53.1]} 32... Kh6 {[%clk 0:01:14.7]} 33. Ra1 {[%clk 0:00:47.2]}
33... Bxh3 {[%clk 0:01:12.2]} 34. Qc1 {[%clk 0:00:31.8]} 34... Qxc1+ {[%clk
0:01:06.8]} 35. Rxc1 {[%clk 0:00:31]} 35... Bf5 {[%clk 0:01:07.3]} 36. Bxf5
{[%clk 0:00:25.8]} 36... gxf5 {[%clk 0:01:08.2]} 37. Ra1 {[%clk 0:00:25.2]}
37... Kg5 {[%clk 0:01:05]} 38. Ra8 {[%clk 0:00:24.4]} 38... Rd7 {[%clk
0:00:59.7]} 39. Kg1 {[%clk 0:00:22.4]} 39... d4 {[%clk 0:00:20.5]} 40. Kf2
{[%clk 0:00:22.2]} 40... Rd5 {[%clk 0:00:20.8]} 41. Rb8 {[%clk 0:00:20.7]} 41...
Rxc5 {[%clk 0:00:21.4]} 42. Rxb7 {[%clk 0:00:20.8]} 42... Rc2+ {[%clk
0:00:21.1]} 43. Kf3 {[%clk 0:00:20.2]} 43... Rc3+ {[%clk 0:00:21.5]} 44. Ke2
{[%clk 0:00:19.7]} 44... c5 {[%clk 0:00:16]} 45. Rc7 {[%clk 0:00:16.9]} 45... c4
{[%clk 0:00:13.4]} 46. b7 {[%clk 0:00:16.5]} 46... Rc2+ {[%clk 0:00:13.6]} 47.
Kf3 {[%clk 0:00:15.5]} 47... Rb2 {[%clk 0:00:14.5]} 48. Rxc4 {[%clk 0:00:14.7]}
48... Rxb7 {[%clk 0:00:15.1]} 49. Rxd4 {[%clk 0:00:15]} 49... Rb3+ {[%clk
0:00:15.7]} 50. Kf2 {[%clk 0:00:14.7]} 50... h5 {[%clk 0:00:16.4]} 51. g3 {[%clk
0:00:13.8]} 51... Rb2+ {[%clk 0:00:16.1]} 52. Kf3 {[%clk 0:00:13.7]} 52... Rb3+
{[%clk 0:00:16.4]} 53. Kf2 {[%clk 0:00:14]} 53... Ra3 {[%clk 0:00:17.3]} 54. Rc4
{[%clk 0:00:13.4]} 54... Ra6 {[%clk 0:00:17.9]} 55. Kf3 {[%clk 0:00:13.4]} 55...
Re6 {[%clk 0:00:18.3]} 56. Rb4 {[%clk 0:00:12.7]} 56... Re1 {[%clk 0:00:18.5]}
57. Ra4 {[%clk 0:00:12.8]} 57... Re4 {[%clk 0:00:14.3]} 58. Ra8 {[%clk
0:00:11.3]} 58... Rb4 {[%clk 0:00:14]} 59. Rg8+ {[%clk 0:00:11.7]} 59... Kf6
{[%clk 0:00:14.5]} 60. Rh8 {[%clk 0:00:11.8]} 60... Kg6 {[%clk 0:00:13.5]} 61.
Rg8+ {[%clk 0:00:11.8]} 61... Kh7 {[%clk 0:00:13.3]} 62. Rf8 {[%clk 0:00:11.7]}
62... Rb5 {[%clk 0:00:13.4]} 63. Rf6 {[%clk 0:00:10.9]} 63... Kg7 {[%clk
0:00:12.9]} 64. Ra6 {[%clk 0:00:10.9]} 64... Rb4 {[%clk 0:00:13.4]} 65. Rc6
{[%clk 0:00:08.7]} 65... Rg4 {[%clk 0:00:11.1]} 66. Rb6 {[%clk 0:00:06]} 66...
Rg6 {[%clk 0:00:11.2]} 67. Rb5 {[%clk 0:00:06.2]} 67... Kf6 {[%clk 0:00:10.8]}
68. Rb6+ {[%clk 0:00:06.4]} 68... Kg5 {[%clk 0:00:11.4]} 69. Rb8 {[%clk
0:00:06.4]} 69... h4 {[%clk 0:00:09.8]} 70. gxh4+ {[%clk 0:00:05.3]} 70... Kxh4
{[%clk 0:00:10.7]} 71. Kf4 {[%clk 0:00:05.7]} 71... Rg4+ {[%clk 0:00:08.2]} 72.
Kxf5 {[%clk 0:00:05.9]} 72... Rg7 {[%clk 0:00:07.8]} 73. Kf4 {[%clk 0:00:05.4]}
73... Rf7+ {[%clk 0:00:08]} 74. Ke3 {[%clk 0:00:05.7]} 74... Kg5 {[%clk
0:00:08.7]} 75. Rg8+ {[%clk 0:00:05.5]} 75... Kf6 {[%clk 0:00:09.2]} 76. Re8
{[%clk 0:00:05.4]} 76... Re7+ {[%clk 0:00:09.3]} 77. Rxe7 {[%clk 0:00:05.5]}
77... Kxe7 {[%clk 0:00:10.2]} 1/2-1/2

[Event "Late-Titled-Tuesday-Blitz-June-18-2024"]
[Site "Chess.com"]
[Date "2024.06.18"]
[Round "5"]
[White "CrimeFightingSpider07"]
[Black "CoachVadim"]
[Result "1/2-1/2"]
[WhiteElo "2515"]
[BlackElo "2395"]
[TimeControl "180+1"]
[EndTime "14:59:29 PDT"]
[Termination "Game drawn - insufficient material"]

1. d4 {[%clk 0:03:00.9]} 1... d5 {[%clk 0:02:58.8]} 2. Nf3 {[%clk 0:03:00.2]}
2... Nf6 {[%clk 0:02:58.6]} 3. c4 {[%clk 0:03:00.2]} 3... c6 {[%clk 0:02:59.2]}
4. e3 {[%clk 0:02:56.4]} 4... e6 {[%clk 0:02:58.5]} 5. Nc3 {[%clk 0:02:56.7]}
5... Nbd7 {[%clk 0:02:58.3]} 6. Bd3 {[%clk 0:02:56.9]} 6... dxc4 {[%clk
0:02:58.7]} 7. Bxc4 {[%clk 0:02:57.3]} 7... b5 {[%clk 0:02:59.4]} 8. Bd3 {[%clk
0:02:57.4]} 8... a6 {[%clk 0:02:59.9]} 9. O-O {[%clk 0:02:57.7]} 9... c5 {[%clk
0:03:00]} 10. dxc5 {[%clk 0:02:54.9]} 10... Nxc5 {[%clk 0:02:57]} 11. Bc2 {[%clk
0:02:55.1]} 11... Bb7 {[%clk 0:02:47.8]} 12. b4 {[%clk 0:02:54.4]} 12... Nce4
{[%clk 0:02:43]} 13. Nxe4 {[%clk 0:02:53.8]} 13... Nxe4 {[%clk 0:02:43.9]} 14.
a3 {[%clk 0:02:49.2]} 14... Qf6 {[%clk 0:02:24.8]} 15. Bxe4 {[%clk 0:02:43.2]}
15... Bxe4 {[%clk 0:02:25.7]} 16. Qd4 {[%clk 0:02:43.1]} 16... Qxd4 {[%clk
0:02:05]} 17. Nxd4 {[%clk 0:02:40.9]} 17... Be7 {[%clk 0:02:00]} 18. Bb2 {[%clk
0:02:39.8]} 18... Rc8 {[%clk 0:01:47.9]} 19. Rac1 {[%clk 0:02:35.3]} 19... O-O
{[%clk 0:01:44.3]} 20. f3 {[%clk 0:02:34.6]} 20... Bd3 {[%clk 0:01:35.8]} 21.
Rfd1 {[%clk 0:02:33.9]} 21... Bc4 {[%clk 0:01:36.1]} 22. Kf2 {[%clk 0:02:33.7]}
22... Bf6 {[%clk 0:01:32.9]} 23. Ba1 {[%clk 0:02:29.5]} 23... Rfd8 {[%clk
0:01:28.3]} 24. f4 {[%clk 0:02:03.2]} 24... Bd5 {[%clk 0:01:12.1]} 25. Bb2
{[%clk 0:02:00]} 25... Kf8 {[%clk 0:01:09.7]} 26. Rxc8 {[%clk 0:01:58.3]} 26...
Rxc8 {[%clk 0:01:09.3]} 27. Rc1 {[%clk 0:01:58.9]} 27... Rxc1 {[%clk 0:01:03.8]}
28. Bxc1 {[%clk 0:01:59.8]} 28... e5 {[%clk 0:01:03.7]} 29. fxe5 {[%clk
0:01:57.1]} 29... Bxe5 {[%clk 0:01:04.6]} 30. g3 {[%clk 0:01:56.8]} 30... Ke7
{[%clk 0:00:58.3]} 31. Bb2 {[%clk 0:01:56.2]} 31... Kd7 {[%clk 0:00:56.3]} 32.
Ke2 {[%clk 0:01:52.9]} 32... g6 {[%clk 0:00:43.6]} 33. Bc1 {[%clk 0:01:52.3]}
33... f5 {[%clk 0:00:43.1]} 34. Nf3 {[%clk 0:01:42.3]} 34... Bc4+ {[%clk
0:00:40]} 35. Kd2 {[%clk 0:01:39.4]} 35... Bf6 {[%clk 0:00:37.9]} 36. Kc2 {[%clk
0:01:22.5]} 36... Kd6 {[%clk 0:00:33.2]} 37. Bb2 {[%clk 0:01:21.6]} 37... Bxb2
{[%clk 0:00:22.7]} 38. Kxb2 {[%clk 0:01:21.3]} 38... Kd5 {[%clk 0:00:22.7]} 39.
Kc3 {[%clk 0:00:41.1]} 39... Ke4 {[%clk 0:00:18.8]} 40. Nd2+ {[%clk 0:00:40.3]}
40... Kxe3 {[%clk 0:00:19]} 41. Nxc4+ {[%clk 0:00:40.8]} 41... bxc4 {[%clk
0:00:19.9]} 42. a4 {[%clk 0:00:41.3]} 42... g5 {[%clk 0:00:19.9]} 43. b5 {[%clk
0:00:41.1]} 43... axb5 {[%clk 0:00:19.4]} 44. axb5 {[%clk 0:00:42]} 44... f4
{[%clk 0:00:20]} 45. gxf4 {[%clk 0:00:42]} 45... gxf4 {[%clk 0:00:20.9]} 46. b6
{[%clk 0:00:41.5]} 46... f3 {[%clk 0:00:21.4]} 47. b7 {[%clk 0:00:41.9]} 47...
f2 {[%clk 0:00:22.2]} 48. b8=Q {[%clk 0:00:42.4]} 48... f1=Q {[%clk 0:00:23.1]}
49. Qe5+ {[%clk 0:00:21.8]} 49... Kf3 {[%clk 0:00:21.9]} 50. Qf5+ {[%clk
0:00:21.1]} 50... Kg2 {[%clk 0:00:20.8]} 51. Qxh7 {[%clk 0:00:19.7]} 51... Qc1+
{[%clk 0:00:12.8]} 52. Kb4 {[%clk 0:00:18.8]} 52... Qd2+ {[%clk 0:00:09.4]} 53.
Kxc4 {[%clk 0:00:16.5]} 53... Qf4+ {[%clk 0:00:09.6]} 54. Kd3 {[%clk 0:00:15]}
54... Qxh2 {[%clk 0:00:10.5]} 55. Qb7+ {[%clk 0:00:14.7]} 55... Kg3 {[%clk
0:00:10.3]} 56. Qc7+ {[%clk 0:00:14.7]} 56... Kg2 {[%clk 0:00:10.7]} 57. Qc6+
{[%clk 0:00:15]} 57... Kg3 {[%clk 0:00:10.4]} 58. Qd6+ {[%clk 0:00:15.3]} 58...
Kg2 {[%clk 0:00:10.8]} 59. Qd5+ {[%clk 0:00:15.5]} 59... Kg3 {[%clk 0:00:11.1]}
60. Qe5+ {[%clk 0:00:15.9]} 60... Kg2 {[%clk 0:00:11.4]} 61. Qe4+ {[%clk
0:00:16.5]} 61... Kf2 {[%clk 0:00:08.8]} 62. Qe3+ {[%clk 0:00:15.4]} 62... Kf1
{[%clk 0:00:08.1]} 63. Qc1+ {[%clk 0:00:14.6]} 63... Kg2 {[%clk 0:00:07.6]} 64.
Qc6+ {[%clk 0:00:10.9]} 64... Kh3 {[%clk 0:00:06.4]} 65. Qe6+ {[%clk 0:00:10.3]}
65... Kg2 {[%clk 0:00:06.1]} 66. Qe4+ {[%clk 0:00:10.3]} 66... Kg1 {[%clk
0:00:06.3]} 67. Qe1+ {[%clk 0:00:09.6]} 67... Kg2 {[%clk 0:00:06.7]} 68. Ke4
{[%clk 0:00:08.2]} 68... Qh7+ {[%clk 0:00:05.4]} 69. Ke3 {[%clk 0:00:08.3]}
69... Qe7+ {[%clk 0:00:05.5]} 70. Kd2 {[%clk 0:00:08.8]} 70... Qxe1+ {[%clk
0:00:06.1]} 71. Kxe1 {[%clk 0:00:09.7]} 1/2-1/2

[Event "Late-Titled-Tuesday-Blitz-June-18-2024"]
[Site "Chess.com"]
[Date "2024.06.18"]
[Round "5"]
[White "Barboval"]
[Black "Byniolus"]
[Result "0-1"]
[WhiteElo "2543"]
[BlackElo "2759"]
[TimeControl "180+1"]
[EndTime "14:59:30 PDT"]
[Termination "Byniolus won by checkmate"]

1. d4 {[%clk 0:03:00.2]} 1... d6 {[%clk 0:02:59.8]} 2. e4 {[%clk 0:02:59.9]}
2... Nf6 {[%clk 0:02:59.8]} 3. Nc3 {[%clk 0:02:59.3]} 3... c6 {[%clk 0:03:00]}
4. Be3 {[%clk 0:02:59]} 4... Qb6 {[%clk 0:02:59]} 5. Rb1 {[%clk 0:02:49.1]} 5...
Ng4 {[%clk 0:02:58]} 6. Qd2 {[%clk 0:02:39.1]} 6... Nxe3 {[%clk 0:02:45.3]} 7.
Qxe3 {[%clk 0:02:40]} 7... e5 {[%clk 0:02:43.2]} 8. Nf3 {[%clk 0:02:40.6]} 8...
Nd7 {[%clk 0:02:38.1]} 9. Bc4 {[%clk 0:02:36.2]} 9... Be7 {[%clk 0:02:38]} 10.
O-O {[%clk 0:02:22]} 10... Bf6 {[%clk 0:02:31.8]} 11. Rfd1 {[%clk 0:02:12.5]}
11... O-O {[%clk 0:02:13.8]} 12. Ne2 {[%clk 0:01:41.6]} 12... Re8 {[%clk
0:02:07.1]} 13. Qa3 {[%clk 0:00:27.4]} 13... Be7 {[%clk 0:01:32.4]} 14. d5
{[%clk 0:00:27.4]} 14... Nf6 {[%clk 0:01:21.4]} 15. Ng3 {[%clk 0:00:26.3]} 15...
cxd5 {[%clk 0:01:07.1]} 16. Bxd5 {[%clk 0:00:27.2]} 16... Nxd5 {[%clk
0:01:07.5]} 17. exd5 {[%clk 0:00:28.1]} 17... f5 {[%clk 0:00:55.7]} 18. c4
{[%clk 0:00:28]} 18... Bf6 {[%clk 0:00:50.9]} 19. Nh5 {[%clk 0:00:28.3]} 19...
Be7 {[%clk 0:00:44.6]} 20. b4 {[%clk 0:00:28.4]} 20... g6 {[%clk 0:00:44.5]} 21.
Ng3 {[%clk 0:00:28.3]} 21... Bd7 {[%clk 0:00:41.5]} 22. Rbc1 {[%clk 0:00:23.7]}
22... a5 {[%clk 0:00:37.7]} 23. b5 {[%clk 0:00:22.9]} 23... Rac8 {[%clk
0:00:32.4]} 24. Qb3 {[%clk 0:00:21.5]} 24... Bf6 {[%clk 0:00:31.1]} 25. a4
{[%clk 0:00:21]} 25... e4 {[%clk 0:00:30.9]} 26. Nd2 {[%clk 0:00:21.4]} 26... e3
{[%clk 0:00:29.1]} 27. Nf3 {[%clk 0:00:14.6]} 27... exf2+ {[%clk 0:00:29.3]} 28.
Kf1 {[%clk 0:00:14.7]} 28... Re3 {[%clk 0:00:19.3]} 29. Rd3 {[%clk 0:00:13.5]}
29... f4 {[%clk 0:00:17.5]} 30. Ne2 {[%clk 0:00:12.4]} 30... Bf5 {[%clk
0:00:09.2]} 31. Rxe3 {[%clk 0:00:07.1]} 31... fxe3 {[%clk 0:00:10.1]} 32. h3
{[%clk 0:00:06.2]} 32... Re8 {[%clk 0:00:08.8]} 33. Rd1 {[%clk 0:00:05.7]} 33...
Qc5 {[%clk 0:00:07.6]} 34. Nfd4 {[%clk 0:00:04.2]} 34... Be4 {[%clk 0:00:05.4]}
35. Ne6 {[%clk 0:00:02.8]} 35... Qb6 {[%clk 0:00:03.9]} 36. Rd3 {[%clk
0:00:01.5]} 36... Bxd3 {[%clk 0:00:03.8]} 37. Qxd3 {[%clk 0:00:02.4]} 37... Bg7
{[%clk 0:00:01.2]} 38. N2f4 {[%clk 0:00:02.1]} 38... Be5 {[%clk 0:00:01.1]} 39.
Ne2 {[%clk 0:00:02]} 39... Qa7 {[%clk 0:00:01.6]} 40. g3 {[%clk 0:00:02.3]}
40... Qb8 {[%clk 0:00:02.5]} 41. Kg2 {[%clk 0:00:03.1]} 41... Re7 {[%clk
0:00:03]} 42. Qe4 {[%clk 0:00:03.7]} 42... Qe8 {[%clk 0:00:03.2]} 43. Qxe3
{[%clk 0:00:04.2]} 43... Rf7 {[%clk 0:00:03.8]} 44. N2f4 {[%clk 0:00:04.1]}
44... Bxf4 {[%clk 0:00:03.5]} 45. gxf4 {[%clk 0:00:05]} 45... Qe7 {[%clk
0:00:01.7]} 46. Qxf2 {[%clk 0:00:05.5]} 46... Qf6 {[%clk 0:00:02.2]} 47. Qf3
{[%clk 0:00:05.4]} 47... Qb2+ {[%clk 0:00:02]} 48. Kg3 {[%clk 0:00:06]} 48...
Qf6 {[%clk 0:00:02.5]} 49. h4 {[%clk 0:00:06.4]} 49... h5 {[%clk 0:00:02.6]} 50.
Qe4 {[%clk 0:00:06.3]} 50... Re7 {[%clk 0:00:02.6]} 51. Kf3 {[%clk 0:00:06.1]}
51... b6 {[%clk 0:00:02.2]} 52. Qd3 {[%clk 0:00:06.1]} 52... Qf5 {[%clk
0:00:02.2]} 53. Qxf5 {[%clk 0:00:05.9]} 53... gxf5 {[%clk 0:00:03.1]} 54. Ke3
{[%clk 0:00:06.5]} 54... Kf7 {[%clk 0:00:03.2]} 55. Kd4 {[%clk 0:00:06.9]} 55...
Kf6 {[%clk 0:00:04.1]} 56. Kd3 {[%clk 0:00:06.4]} 56... Rd7 {[%clk 0:00:03.6]}
57. Kd4 {[%clk 0:00:06.7]} 57... Re7 {[%clk 0:00:04.1]} 58. Nd8 {[%clk
0:00:06.2]} 58... Rg7 {[%clk 0:00:03.8]} 59. Ne6 {[%clk 0:00:05.2]} 59... Rg4
{[%clk 0:00:03.5]} 60. c5 {[%clk 0:00:06.1]} 60... dxc5+ {[%clk 0:00:03]} 61.
Kc4 {[%clk 0:00:06.5]} 61... Rxh4 {[%clk 0:00:03.3]} 62. Nd8 {[%clk 0:00:05.1]}
62... Rxf4+ {[%clk 0:00:03]} 63. Kc3 {[%clk 0:00:05.8]} 63... Rxa4 {[%clk
0:00:02.9]} 64. Nb7 {[%clk 0:00:06.6]} 64... Rd4 {[%clk 0:00:02.8]} 65. Nd6
{[%clk 0:00:07.2]} 65... Rxd5 {[%clk 0:00:02.6]} 66. Nc8 {[%clk 0:00:08.1]}
66... Re5 {[%clk 0:00:01.7]} 67. Nxb6 {[%clk 0:00:08.5]} 67... Re3+ {[%clk
0:00:02.6]} 68. Kd2 {[%clk 0:00:08.5]} 68... Re6 {[%clk 0:00:02.7]} 69. Nd5+
{[%clk 0:00:08.6]} 69... Ke5 {[%clk 0:00:03.6]} 70. Nc3 {[%clk 0:00:08.8]} 70...
Rb6 {[%clk 0:00:03.2]} 71. Kd3 {[%clk 0:00:09.4]} 71... h4 {[%clk 0:00:03.5]}
72. Kc4 {[%clk 0:00:09.6]} 72... h3 {[%clk 0:00:03.8]} 73. Ne2 {[%clk 0:00:10]}
73... h2 {[%clk 0:00:03.4]} 74. Ng3 {[%clk 0:00:10.5]} 74... Rg6 {[%clk
0:00:04]} 75. Nh1 {[%clk 0:00:10.4]} 75... Rg1 {[%clk 0:00:04]} 76. Nf2 {[%clk
0:00:11.3]} 76... Rf1 {[%clk 0:00:03.8]} 77. Nh1 {[%clk 0:00:12.2]} 77... Rxh1
{[%clk 0:00:03.8]} 78. Kxc5 {[%clk 0:00:13.1]} 78... Rc1+ {[%clk 0:00:04.1]} 79.
Kb6 {[%clk 0:00:13.6]} 79... h1=Q {[%clk 0:00:03.9]} 80. Ka6 {[%clk 0:00:14.5]}
80... Qa8+ {[%clk 0:00:03.6]} 81. Kb6 {[%clk 0:00:14.9]} 81... Qb8+ {[%clk
0:00:04.1]} 82. Ka6 {[%clk 0:00:15.4]} 82... Rb1 {[%clk 0:00:03.9]} 83. b6
{[%clk 0:00:15.2]} 83... Qxb6# {[%clk 0:00:04.2]} 0-1

[Event "Late-Titled-Tuesday-Blitz-June-18-2024"]
[Site "Chess.com"]
[Date "2024.06.18"]
[Round "5"]
[White "GasconJR"]
[Black "Hrant_ChessMood"]
[Result "1-0"]
[WhiteElo "2656"]
[BlackElo "2881"]
[TimeControl "180+1"]
[EndTime "14:59:35 PDT"]
[Termination "GasconJR won on time"]

1. e4 {[%clk 0:03:00.9]} 1... c6 {[%clk 0:03:00.1]} 2. d4 {[%clk 0:02:59.5]}
2... d5 {[%clk 0:03:00.4]} 3. e5 {[%clk 0:02:59.4]} 3... c5 {[%clk 0:02:58.3]}
4. dxc5 {[%clk 0:02:58.4]} 4... e6 {[%clk 0:02:58.1]} 5. a3 {[%clk 0:02:57.1]}
5... Bxc5 {[%clk 0:02:56.2]} 6. Nf3 {[%clk 0:02:55]} 6... Ne7 {[%clk 0:02:56.4]}
7. Bd3 {[%clk 0:02:54.4]} 7... Ng6 {[%clk 0:02:51.4]} 8. b4 {[%clk 0:02:48.1]}
8... Be7 {[%clk 0:02:44.6]} 9. h4 {[%clk 0:02:41.7]} 9... Nc6 {[%clk 0:02:33.4]}
10. Qe2 {[%clk 0:02:29.3]} 10... Qc7 {[%clk 0:02:27.2]} 11. Bxg6 {[%clk
0:02:02.1]} 11... hxg6 {[%clk 0:02:25.8]} 12. Bb2 {[%clk 0:01:59.2]} 12... Bd7
{[%clk 0:02:23.6]} 13. Nbd2 {[%clk 0:01:54.2]} 13... a5 {[%clk 0:02:21.4]} 14.
b5 {[%clk 0:01:46.1]} 14... Na7 {[%clk 0:02:20.9]} 15. a4 {[%clk 0:01:46.1]}
15... Nc8 {[%clk 0:02:21]} 16. c4 {[%clk 0:01:38.1]} 16... Nb6 {[%clk
0:02:20.8]} 17. cxd5 {[%clk 0:01:35.2]} 17... Nxd5 {[%clk 0:02:18.4]} 18. Rc1
{[%clk 0:01:34.4]} 18... Qd8 {[%clk 0:02:17.4]} 19. g3 {[%clk 0:01:23.6]} 19...
Rc8 {[%clk 0:02:12.8]} 20. O-O {[%clk 0:01:22.7]} 20... O-O {[%clk 0:02:12.3]}
21. Ne4 {[%clk 0:01:19.4]} 21... Rxc1 {[%clk 0:02:02.8]} 22. Rxc1 {[%clk
0:01:18.5]} 22... Qb8 {[%clk 0:02:03.7]} 23. Nfg5 {[%clk 0:00:55]} 23... Rc8
{[%clk 0:02:02.1]} 24. Rxc8+ {[%clk 0:00:52.7]} 24... Qxc8 {[%clk 0:02:02]} 25.
h5 {[%clk 0:00:49.9]} 25... Bb4 {[%clk 0:01:34.8]} 26. hxg6 {[%clk 0:00:49.2]}
26... fxg6 {[%clk 0:01:34.6]} 27. Qg4 {[%clk 0:00:48.9]} 27... Qc2 {[%clk
0:01:23.2]} 28. Qf3 {[%clk 0:00:22]} 28... Be8 {[%clk 0:01:23.1]} 29. Bd4 {[%clk
0:00:13.5]} 29... Qc4 {[%clk 0:01:04.7]} 30. Be3 {[%clk 0:00:12.8]} 30... Ne7
{[%clk 0:00:57.2]} 31. Nd6 {[%clk 0:00:11.3]} 31... Bxd6 {[%clk 0:00:17.2]} 32.
exd6 {[%clk 0:00:12.2]} 32... Nf5 {[%clk 0:00:14.8]} 33. Qh1 {[%clk 0:00:12.5]}
33... Bf7 {[%clk 0:00:03.1]} 34. Qxb7 {[%clk 0:00:08.8]} 34... Nxd6 {[%clk
0:00:02.6]} 35. Qb8+ {[%clk 0:00:08.5]} 35... Ne8 {[%clk 0:00:02.8]} 36. Qa7
{[%clk 0:00:06]} 36... e5 {[%clk 0:00:02.4]} 37. Qxf7+ {[%clk 0:00:05.5]} 37...
Qxf7 {[%clk 0:00:02.1]} 38. Nxf7 {[%clk 0:00:06.4]} 38... Kxf7 {[%clk 0:00:03]}
39. Bb6 {[%clk 0:00:07.2]} 39... Ke6 {[%clk 0:00:03.4]} 40. Bxa5 {[%clk
0:00:07.8]} 40... Kd5 {[%clk 0:00:04.3]} 41. Bc3 {[%clk 0:00:08]} 41... Nd6
{[%clk 0:00:04.3]} 42. b6 {[%clk 0:00:07.5]} 42... Kc6 {[%clk 0:00:02.8]} 43. a5
{[%clk 0:00:07.9]} 43... Nc4 {[%clk 0:00:02.9]} 44. Kg2 {[%clk 0:00:07.2]} 44...
e4 {[%clk 0:00:02.8]} 45. Kf1 {[%clk 0:00:06.9]} 45... Kb7 {[%clk 0:00:02.3]}
46. Ke2 {[%clk 0:00:06.4]} 46... Ka6 {[%clk 0:00:02.6]} 47. Bb4 {[%clk
0:00:06.7]} 47... Nb2 {[%clk 0:00:01]} 48. Bc3 {[%clk 0:00:06.6]} 48... Nc4
{[%clk 0:00:01.3]} 49. Kf1 {[%clk 0:00:06.6]} 49... Nd6 {[%clk 0:00:01]} 50. Ke1
{[%clk 0:00:04.9]} 50... Nc4 {[%clk 0:00:01.9]} 51. Kd1 {[%clk 0:00:05.4]} 51...
Kb7 {[%clk 0:00:02.1]} 52. Kc2 {[%clk 0:00:05.8]} 52... Ka6 {[%clk 0:00:03]} 53.
Kb3 {[%clk 0:00:06]} 53... Nd6 {[%clk 0:00:02.9]} 54. Bd4 {[%clk 0:00:05.2]}
54... Nf5 {[%clk 0:00:03.4]} 55. Bc3 {[%clk 0:00:04.8]} 55... e3 {[%clk
0:00:04]} 56. fxe3 {[%clk 0:00:04.7]} 56... Nxg3 {[%clk 0:00:04.6]} 57. Bxg7
{[%clk 0:00:04.2]} 57... g5 {[%clk 0:00:04.9]} 58. Kc4 {[%clk 0:00:04.2]} 58...
g4 {[%clk 0:00:05.1]} 59. Be5 {[%clk 0:00:03.9]} 59... Ne2 {[%clk 0:00:05.3]}
60. Kd3 {[%clk 0:00:03.8]} 60... Ng1 {[%clk 0:00:04.8]} 61. e4 {[%clk
0:00:03.3]} 61... Nf3 {[%clk 0:00:05.7]} 62. Bf4 {[%clk 0:00:03.1]} 62... Nh4
{[%clk 0:00:05.7]} 63. e5 {[%clk 0:00:02.8]} 63... Ng6 {[%clk 0:00:06.6]} 64.
Bg3 {[%clk 0:00:03.5]} 64... Ne7 {[%clk 0:00:06.7]} 65. Be1 {[%clk 0:00:02.7]}
65... Nc6 {[%clk 0:00:06]} 66. Ke4 {[%clk 0:00:02.5]} 66... Kb7 {[%clk
0:00:05.5]} 67. Kf4 {[%clk 0:00:02.9]} 67... Ka6 {[%clk 0:00:04.4]} 68. Bc3
{[%clk 0:00:03.5]} 68... Ne7 {[%clk 0:00:03.5]} 69. Kxg4 {[%clk 0:00:03.7]}
69... Nd5 {[%clk 0:00:04.1]} 70. Bd2 {[%clk 0:00:03.6]} 70... Kb7 {[%clk
0:00:04.6]} 71. e6 {[%clk 0:00:04]} 71... Kc6 {[%clk 0:00:05.5]} 72. Kf5 {[%clk
0:00:04.5]} 72... Kd6 {[%clk 0:00:05]} 73. Bf4+ {[%clk 0:00:04.3]} 73... Kc6
{[%clk 0:00:04.2]} 74. Bg5 {[%clk 0:00:04.2]} 74... Kd6 {[%clk 0:00:04.1]} 75.
e7 {[%clk 0:00:04.2]} 75... Kd7 {[%clk 0:00:04.5]} 76. Kg6 {[%clk 0:00:04.2]}
76... Ke8 {[%clk 0:00:04.3]} 77. b7 {[%clk 0:00:04.8]} 1-0